[Event "Late-Titled-Tuesday-Blitz-October-10-2023"]
[Site "Chess.com"]
[Date "2023.10.10"]
[Round "7"]
[White "Mackster23"]
[Black "santosalberto1987"]
[Result "1-0"]
[WhiteElo "2672"]
[BlackElo "2466"]
[TimeControl "180+1"]
[EndTime "15:11:04 PDT"]
[Termination "Mackster23 won by resignation"]

1. e4 {[%clk 0:02:30.9]} 1... e6 {[%clk 0:02:59.5]} 2. d4 {[%clk 0:02:30.8]}
2... d5 {[%clk 0:02:59.7]} 3. Nc3 {[%clk 0:02:31.5]} 3... Nf6 {[%clk 0:02:59.9]}
4. Bg5 {[%clk 0:02:30.3]} 4... Bb4 {[%clk 0:02:59.8]} 5. e5 {[%clk 0:02:30.3]}
5... h6 {[%clk 0:03:00]} 6. Be3 {[%clk 0:02:30.7]} 6... Ne4 {[%clk 0:02:58.4]}
7. Qg4 {[%clk 0:02:31.1]} 7... Kf8 {[%clk 0:02:57]} 8. Ne2 {[%clk 0:02:29.1]}
8... c5 {[%clk 0:02:54.2]} 9. dxc5 {[%clk 0:02:29.2]} 9... Bxc5 {[%clk
0:02:48.1]} 10. Nxe4 {[%clk 0:02:03.4]} 10... Bxe3 {[%clk 0:02:47.6]} 11. fxe3
{[%clk 0:02:01.2]} 11... dxe4 {[%clk 0:02:47.5]} 12. Nc3 {[%clk 0:01:55.7]}
12... Nc6 {[%clk 0:02:43.4]} 13. Qxe4 {[%clk 0:01:50.2]} 13... Qa5 {[%clk
0:02:39]} 14. O-O-O {[%clk 0:01:48.2]} 14... Ke7 {[%clk 0:02:29.8]} 15. Bb5
{[%clk 0:01:46.3]} 15... Bd7 {[%clk 0:02:26.7]} 16. Rd6 {[%clk 0:01:19.4]} 16...
Rhd8 {[%clk 0:02:22.2]} 17. Rhd1 {[%clk 0:01:11.1]} 17... a6 {[%clk 0:02:21.1]}
18. Qh4+ {[%clk 0:00:53.9]} 18... Ke8 {[%clk 0:02:15]} 19. Bxc6 {[%clk
0:00:42.5]} 19... Bxc6 {[%clk 0:02:15.1]} 20. a3 {[%clk 0:00:32.9]} 20... Rac8
{[%clk 0:02:10.7]} 21. Qg3 {[%clk 0:00:29.5]} 21... Kf8 {[%clk 0:02:05]} 22. Rf1
{[%clk 0:00:28.3]} 22... Rxd6 {[%clk 0:01:59.7]} 23. exd6 {[%clk 0:00:29.2]}
23... Rd8 {[%clk 0:01:50.8]} 24. e4 {[%clk 0:00:25.1]} 24... e5 {[%clk
0:01:41.6]} 25. Qg6 {[%clk 0:00:16.8]} 25... Rd7 {[%clk 0:01:34.7]} 26. Qh7
{[%clk 0:00:13.8]} 26... Rxd6 {[%clk 0:01:32.1]} 27. Qh8+ {[%clk 0:00:14.1]}
27... Ke7 {[%clk 0:01:32.7]} 28. Qxg7 {[%clk 0:00:15]} 28... Be8 {[%clk
0:01:31.3]} 29. Nd5+ {[%clk 0:00:14.4]} 29... Rxd5 {[%clk 0:01:27.9]} 30. exd5
{[%clk 0:00:15.3]} 30... Qxd5 {[%clk 0:01:28.4]} 31. Qxh6 {[%clk 0:00:13.5]}
31... Qxg2 {[%clk 0:01:21.6]} 32. Qf6+ {[%clk 0:00:13.5]} 32... Kf8 {[%clk
0:01:22]} 33. Qh8+ {[%clk 0:00:13.7]} 33... Ke7 {[%clk 0:01:20.1]} 34. Qxe5+
{[%clk 0:00:13.8]} 34... Kf8 {[%clk 0:01:20.5]} 35. Qc5+ {[%clk 0:00:12.7]}
35... Kg7 {[%clk 0:01:17.6]} 36. Rg1 {[%clk 0:00:13.6]} 1-0

[Event "Late-Titled-Tuesday-Blitz-October-10-2023"]
[Site "Chess.com"]
[Date "2023.10.10"]
[Round "7"]
[White "PatzerSmashers"]
[Black "NateSolon"]
[Result "0-1"]
[WhiteElo "2406"]
[BlackElo "2585"]
[TimeControl "180+1"]
[EndTime "15:11:11 PDT"]
[Termination "NateSolon won on time"]

1. Nf3 {[%clk 0:03:00.9]} 1... d5 {[%clk 0:02:59.3]} 2. e3 {[%clk 0:03:00.8]}
2... Nf6 {[%clk 0:02:56]} 3. c4 {[%clk 0:03:01.1]} 3... c6 {[%clk 0:02:55.6]} 4.
Nc3 {[%clk 0:03:00.9]} 4... e6 {[%clk 0:02:55.6]} 5. b3 {[%clk 0:02:57.8]} 5...
Bd6 {[%clk 0:02:55.4]} 6. Bb2 {[%clk 0:02:57.4]} 6... O-O {[%clk 0:02:55.6]} 7.
Qc2 {[%clk 0:02:56.9]} 7... b6 {[%clk 0:02:53.8]} 8. Rg1 {[%clk 0:02:56.3]} 8...
Bb7 {[%clk 0:02:52.3]} 9. d4 {[%clk 0:02:52.7]} 9... Nbd7 {[%clk 0:02:47.4]} 10.
g4 {[%clk 0:02:52.3]} 10... c5 {[%clk 0:02:22.4]} 11. g5 {[%clk 0:02:40.6]}
11... Ne4 {[%clk 0:02:22.1]} 12. Nxe4 {[%clk 0:02:33.2]} 12... dxe4 {[%clk
0:02:21.3]} 13. Nd2 {[%clk 0:02:32.5]} 13... cxd4 {[%clk 0:02:17.9]} 14. exd4
{[%clk 0:02:27.7]} 14... e3 {[%clk 0:01:36.5]} 15. Ne4 {[%clk 0:01:32.7]} 15...
Bb4+ {[%clk 0:01:36.5]} 16. Nc3 {[%clk 0:01:24.5]} 16... exf2+ {[%clk
0:01:36.8]} 17. Qxf2 {[%clk 0:01:20.6]} 17... e5 {[%clk 0:01:34.7]} 18. O-O-O
{[%clk 0:01:17]} 18... exd4 {[%clk 0:01:30]} 19. Qxd4 {[%clk 0:01:04]} 19... Bc5
{[%clk 0:01:27.2]} 20. Qxd7 {[%clk 0:01:03.6]} 20... Qxd7 {[%clk 0:01:28.1]} 21.
Rxd7 {[%clk 0:01:03.7]} 21... Bc8 {[%clk 0:01:28.6]} 22. Rd3 {[%clk 0:00:16.8]}
22... Bxg1 {[%clk 0:01:27.6]} 23. Bg2 {[%clk 0:00:16.8]} 23... Rb8 {[%clk
0:01:25.7]} 24. Ne2 {[%clk 0:00:12.6]} 24... Bxh2 {[%clk 0:01:19]} 25. Nd4
{[%clk 0:00:07.3]} 25... Bb7 {[%clk 0:01:13.7]} 26. Bxb7 {[%clk 0:00:03.4]}
26... Rxb7 {[%clk 0:01:14.6]} 27. Nf5 {[%clk 0:00:04.3]} 27... Bf4+ {[%clk
0:01:11.3]} 28. Kc2 {[%clk 0:00:02.8]} 28... Bxg5 {[%clk 0:01:11.1]} 29. Rg3
{[%clk 0:00:01.8]} 29... f6 {[%clk 0:01:07.5]} 0-1

[Event "Late-Titled-Tuesday-Blitz-October-10-2023"]
[Site "Chess.com"]
[Date "2023.10.10"]
[Round "7"]
[White "Bala-Afiada"]
[Black "Pomberito2"]
[Result "0-1"]
[WhiteElo "1939"]
[BlackElo "2469"]
[TimeControl "180+1"]
[EndTime "15:11:12 PDT"]
[Termination "Pomberito2 won by resignation"]

1. d4 {[%clk 0:03:00.9]} 1... e6 {[%clk 0:02:59.7]} 2. c4 {[%clk 0:03:00.9]}
2... Nf6 {[%clk 0:02:59.2]} 3. Nf3 {[%clk 0:03:01]} 3... b6 {[%clk 0:02:58.7]}
4. g3 {[%clk 0:03:01.2]} 4... Ba6 {[%clk 0:02:58]} 5. Qc2 {[%clk 0:02:49.9]}
5... c5 {[%clk 0:02:53.6]} 6. Bg2 {[%clk 0:02:46]} 6... Bb7 {[%clk 0:02:51]} 7.
O-O {[%clk 0:02:42.4]} 7... cxd4 {[%clk 0:02:49.5]} 8. Nxd4 {[%clk 0:02:43.3]}
8... Bxg2 {[%clk 0:02:49.3]} 9. Kxg2 {[%clk 0:02:44.2]} 9... Nc6 {[%clk
0:02:46.4]} 10. Nxc6 {[%clk 0:02:41.7]} 10... dxc6 {[%clk 0:02:46.3]} 11. Rd1
{[%clk 0:02:42.6]} 11... Qc8 {[%clk 0:02:45.6]} 12. Bf4 {[%clk 0:02:38.3]} 12...
Be7 {[%clk 0:02:45]} 13. Nc3 {[%clk 0:02:38.5]} 13... O-O {[%clk 0:02:44.7]} 14.
Rd2 {[%clk 0:02:33.1]} 14... Qb7 {[%clk 0:02:40.8]} 15. f3 {[%clk 0:02:25.9]}
15... Rad8 {[%clk 0:02:39.2]} 16. Rad1 {[%clk 0:02:25]} 16... Qc8 {[%clk
0:02:37.7]} 17. Ne4 {[%clk 0:02:09.7]} 17... Rxd2 {[%clk 0:02:32.9]} 18. Nxf6+
{[%clk 0:02:04.3]} 18... Bxf6 {[%clk 0:02:31.4]} 19. Rxd2 {[%clk 0:02:04.7]}
19... Rd8 {[%clk 0:02:28.4]} 20. Qd1 {[%clk 0:02:01.1]} 20... Rxd2 {[%clk
0:02:28.2]} 21. Qxd2 {[%clk 0:02:02]} 21... Qd8 {[%clk 0:02:25.4]} 22. Qxd8+
{[%clk 0:01:59.4]} 22... Bxd8 {[%clk 0:02:26.3]} 23. e4 {[%clk 0:01:45.7]} 23...
Kf8 {[%clk 0:02:23.3]} 24. Bd6+ {[%clk 0:01:41.2]} 24... Ke8 {[%clk 0:02:22.5]}
25. c5 {[%clk 0:01:39.3]} 25... b5 {[%clk 0:02:21.6]} 26. Kf2 {[%clk 0:01:25.2]}
26... Ba5 {[%clk 0:02:19.4]} 27. Ke3 {[%clk 0:01:13]} 27... f6 {[%clk
0:02:13.3]} 28. f4 {[%clk 0:01:12.6]} 28... Kd7 {[%clk 0:02:09.3]} 29. a3 {[%clk
0:01:07.4]} 29... Bd8 {[%clk 0:01:59.1]} 30. h3 {[%clk 0:00:51.3]} 30... g6
{[%clk 0:01:57]} 31. g4 {[%clk 0:00:51.5]} 31... f5 {[%clk 0:01:55.2]} 32. exf5
{[%clk 0:00:49.7]} 32... exf5 {[%clk 0:01:53.7]} 33. gxf5 {[%clk 0:00:41.3]}
33... gxf5 {[%clk 0:01:52.5]} 34. Kd4 {[%clk 0:00:33.6]} 34... Ke6 {[%clk
0:01:51.5]} 35. Be5 {[%clk 0:00:27]} 35... Bh4 {[%clk 0:01:50.6]} 36. b3 {[%clk
0:00:25.2]} 36... Bf2+ {[%clk 0:01:49.3]} 37. Kd3 {[%clk 0:00:20.8]} 37... Bxc5
{[%clk 0:01:48]} 38. a4 {[%clk 0:00:19]} 38... bxa4 {[%clk 0:01:45.7]} 39. bxa4
{[%clk 0:00:19.9]} 39... Bd6 {[%clk 0:01:45.8]} 40. Bd4 {[%clk 0:00:15.7]} 40...
a6 {[%clk 0:01:44.1]} 41. Be3 {[%clk 0:00:15.3]} 41... Kd5 {[%clk 0:01:44.2]}
42. h4 {[%clk 0:00:14.4]} 42... c5 {[%clk 0:01:44]} 43. h5 {[%clk 0:00:14.8]}
43... c4+ {[%clk 0:01:43.4]} 44. Kc3 {[%clk 0:00:14.7]} 44... Bc7 {[%clk
0:01:40.4]} 45. Bd2 {[%clk 0:00:07.8]} 45... Ba5+ {[%clk 0:01:39.2]} 0-1

[Event "Late-Titled-Tuesday-Blitz-October-10-2023"]
[Site "Chess.com"]
[Date "2023.10.10"]
[Round "7"]
[White "CraiggoryC"]
[Black "ural58"]
[Result "0-1"]
[WhiteElo "2274"]
[BlackElo "2527"]
[TimeControl "180+1"]
[EndTime "15:11:13 PDT"]
[Termination "ural58 won by resignation"]

1. e4 {[%clk 0:02:37.7]} 1... d5 {[%clk 0:02:59.5]} 2. exd5 {[%clk 0:02:37.6]}
2... Qxd5 {[%clk 0:02:59.6]} 3. Nc3 {[%clk 0:02:38.3]} 3... Qa5 {[%clk
0:02:59.6]} 4. d4 {[%clk 0:02:39.1]} 4... Nf6 {[%clk 0:02:59.8]} 5. Nf3 {[%clk
0:02:39.7]} 5... Nc6 {[%clk 0:02:59.9]} 6. d5 {[%clk 0:02:36.4]} 6... Nb4 {[%clk
0:02:58.1]} 7. Bc4 {[%clk 0:02:36.1]} 7... e6 {[%clk 0:02:50.2]} 8. dxe6 {[%clk
0:02:13.7]} 8... Bxe6 {[%clk 0:02:49.3]} 9. Bxe6 {[%clk 0:02:08.8]} 9... fxe6
{[%clk 0:02:49.5]} 10. a3 {[%clk 0:02:08.8]} 10... Nbd5 {[%clk 0:02:24.1]} 11.
O-O {[%clk 0:02:03.1]} 11... Nxc3 {[%clk 0:02:22.5]} 12. Qe1 {[%clk 0:01:52.5]}
12... O-O-O {[%clk 0:02:16.7]} 13. Bd2 {[%clk 0:01:27.4]} 13... Nfd5 {[%clk
0:01:50.6]} 14. bxc3 {[%clk 0:01:11.7]} 14... Qa6 {[%clk 0:01:37.8]} 15. c4
{[%clk 0:01:08.8]} 15... Nf6 {[%clk 0:01:30.4]} 16. Ng5 {[%clk 0:00:43.5]} 16...
Re8 {[%clk 0:01:29.6]} 17. Be3 {[%clk 0:00:13.2]} 17... Qxc4 {[%clk 0:01:19.1]}
18. Qa5 {[%clk 0:00:12.8]} 18... a6 {[%clk 0:01:15.2]} 19. Rfe1 {[%clk
0:00:08.5]} 19... Bd6 {[%clk 0:01:13.6]} 20. Nf7 {[%clk 0:00:08.2]} 20... Rhf8
{[%clk 0:00:55.3]} 21. Nxd6+ {[%clk 0:00:08.4]} 21... cxd6 {[%clk 0:00:55.5]}
22. Rad1 {[%clk 0:00:07.7]} 22... Nd5 {[%clk 0:00:48.8]} 23. Rd4 {[%clk
0:00:07.8]} 23... Qc7 {[%clk 0:00:46.6]} 24. c4 {[%clk 0:00:07.6]} 24... Qxa5
{[%clk 0:00:46.4]} 0-1

[Event "Late-Titled-Tuesday-Blitz-October-10-2023"]
[Site "Chess.com"]
[Date "2023.10.10"]
[Round "7"]
[White "tptagain"]
[Black "Korchmar_Vasiliy"]
[Result "1-0"]
[WhiteElo "2882"]
[BlackElo "2757"]
[TimeControl "180+1"]
[EndTime "15:11:14 PDT"]
[Termination "tptagain won by resignation"]

1. Nf3 {[%clk 0:03:00.9]} 1... d5 {[%clk 0:03:00.1]} 2. b3 {[%clk 0:03:01.4]}
2... Nf6 {[%clk 0:02:56.4]} 3. Bb2 {[%clk 0:03:01.6]} 3... e6 {[%clk 0:02:56]}
4. c4 {[%clk 0:03:01.1]} 4... Bd6 {[%clk 0:02:53.5]} 5. g3 {[%clk 0:03:00.5]}
5... c5 {[%clk 0:02:51.5]} 6. cxd5 {[%clk 0:02:59.7]} 6... exd5 {[%clk
0:02:51.6]} 7. Bg2 {[%clk 0:02:57.7]} 7... d4 {[%clk 0:02:49.7]} 8. Na3 {[%clk
0:02:58.1]} 8... O-O {[%clk 0:02:45.2]} 9. O-O {[%clk 0:02:58.6]} 9... Nc6
{[%clk 0:02:45]} 10. e3 {[%clk 0:02:58.5]} 10... Bg4 {[%clk 0:02:42.9]} 11. h3
{[%clk 0:02:58]} 11... Bh5 {[%clk 0:02:42.9]} 12. Nc4 {[%clk 0:02:55.6]} 12...
Bc7 {[%clk 0:02:42.6]} 13. Rc1 {[%clk 0:02:53.1]} 13... Nb4 {[%clk 0:02:32.4]}
14. exd4 {[%clk 0:02:51.9]} 14... Nd3 {[%clk 0:02:28.4]} 15. dxc5 {[%clk
0:02:49.7]} 15... Nxc1 {[%clk 0:02:22.4]} 16. Qxc1 {[%clk 0:02:50.6]} 16... Nd5
{[%clk 0:02:13.3]} 17. Nd4 {[%clk 0:02:22]} 17... Nb4 {[%clk 0:01:51.2]} 18. Nf5
{[%clk 0:02:21.9]} 18... f6 {[%clk 0:01:40]} 19. Ncd6 {[%clk 0:02:19]} 19... Kh8
{[%clk 0:01:16.4]} 20. Qc4 {[%clk 0:02:13.9]} 20... Nc6 {[%clk 0:01:12.1]} 21.
d4 {[%clk 0:02:03.8]} 21... Bg6 {[%clk 0:01:02.8]} 22. Nxb7 {[%clk 0:01:48.7]}
22... Qd7 {[%clk 0:01:00.1]} 23. Nfd6 {[%clk 0:01:47.2]} 23... Ne7 {[%clk
0:00:39.4]} 24. d5 {[%clk 0:01:28.3]} 24... Nf5 {[%clk 0:00:31.8]} 25. Nxf5
{[%clk 0:01:24.1]} 25... Bxf5 {[%clk 0:00:32.7]} 26. d6 {[%clk 0:01:19.5]} 26...
Bxh3 {[%clk 0:00:27.5]} 27. Bxh3 {[%clk 0:01:17.3]} 27... Qxh3 {[%clk
0:00:27.5]} 28. dxc7 {[%clk 0:01:17.7]} 28... Rac8 {[%clk 0:00:23.5]} 29. Nd6
{[%clk 0:01:14.1]} 29... Rxc7 {[%clk 0:00:23.1]} 30. Re1 {[%clk 0:01:14.6]}
30... h5 {[%clk 0:00:16.1]} 31. b4 {[%clk 0:01:12.6]} 31... Qd7 {[%clk
0:00:02.5]} 32. Qh4 {[%clk 0:01:09.7]} 1-0

[Event "Late-Titled-Tuesday-Blitz-October-10-2023"]
[Site "Chess.com"]
[Date "2023.10.10"]
[Round "7"]
[White "micke12a"]
[Black "luizzy"]
[Result "0-1"]
[WhiteElo "2360"]
[BlackElo "2552"]
[TimeControl "180+1"]
[EndTime "15:11:14 PDT"]
[Termination "luizzy won by resignation"]

1. d4 {[%clk 0:03:00.9]} 1... d6 {[%clk 0:02:59.7]} 2. Nc3 {[%clk 0:03:00.3]}
2... Nf6 {[%clk 0:02:59.9]} 3. g3 {[%clk 0:02:57.5]} 3... Nbd7 {[%clk
0:02:55.1]} 4. Bg2 {[%clk 0:02:57.1]} 4... e5 {[%clk 0:02:55.2]} 5. dxe5 {[%clk
0:02:50.1]} 5... dxe5 {[%clk 0:02:53.4]} 6. e4 {[%clk 0:02:47.6]} 6... c6 {[%clk
0:02:50.8]} 7. Nge2 {[%clk 0:02:46.8]} 7... Bc5 {[%clk 0:02:43.9]} 8. O-O {[%clk
0:02:46]} 8... O-O {[%clk 0:02:44.5]} 9. a4 {[%clk 0:02:41.6]} 9... h6 {[%clk
0:02:42]} 10. h3 {[%clk 0:02:41.3]} 10... Qc7 {[%clk 0:02:38.3]} 11. Qd3 {[%clk
0:02:40.9]} 11... Rd8 {[%clk 0:02:36.8]} 12. Qf3 {[%clk 0:02:35]} 12... a5
{[%clk 0:02:32.9]} 13. g4 {[%clk 0:02:33.9]} 13... Be7 {[%clk 0:02:16.5]} 14.
Ng3 {[%clk 0:02:33.1]} 14... Nf8 {[%clk 0:02:16.4]} 15. Nf5 {[%clk 0:02:30.4]}
15... Ne6 {[%clk 0:02:07.7]} 16. h4 {[%clk 0:02:20.4]} 16... Nd4 {[%clk
0:02:05.9]} 17. Qg3 {[%clk 0:02:13.9]} 17... Bxf5 {[%clk 0:01:58.6]} 18. gxf5
{[%clk 0:02:12.5]} 18... Kf8 {[%clk 0:01:57.1]} 19. f4 {[%clk 0:01:58.1]} 19...
Bd6 {[%clk 0:01:47.1]} 20. fxe5 {[%clk 0:01:48.8]} 20... Bxe5 {[%clk 0:01:47.1]}
21. Bf4 {[%clk 0:01:49]} 21... Bxf4 {[%clk 0:01:43.8]} 22. Qxf4 {[%clk
0:01:47.1]} 22... Qxf4 {[%clk 0:01:35.9]} 23. Rxf4 {[%clk 0:01:48]} 23... Nxc2
{[%clk 0:01:36.7]} 24. Rc1 {[%clk 0:01:47]} 24... Nb4 {[%clk 0:01:23.9]} 25. e5
{[%clk 0:01:46.7]} 25... Nd3 {[%clk 0:01:20.3]} 26. exf6 {[%clk 0:01:44.1]}
26... Nxf4 {[%clk 0:01:16.7]} 27. fxg7+ {[%clk 0:01:43.6]} 27... Kxg7 {[%clk
0:01:17.6]} 28. Bf3 {[%clk 0:01:41.8]} 28... Rd4 {[%clk 0:00:55.9]} 29. Kf2
{[%clk 0:01:41.6]} 29... Nd3+ {[%clk 0:00:43.1]} 30. Ke3 {[%clk 0:01:41.5]}
30... Nxc1 {[%clk 0:00:43.1]} 31. Kxd4 {[%clk 0:01:41.9]} 31... Nb3+ {[%clk
0:00:43.3]} 32. Ke5 {[%clk 0:01:39.9]} 32... Rd8 {[%clk 0:00:39.6]} 33. f6+
{[%clk 0:01:39.6]} 33... Kf8 {[%clk 0:00:38.2]} 34. Ne4 {[%clk 0:01:34.5]} 34...
Nd2 {[%clk 0:00:34.9]} 35. Bg2 {[%clk 0:01:19.1]} 35... Nxe4 {[%clk 0:00:32.4]}
36. Bxe4 {[%clk 0:01:20]} 36... Rd2 {[%clk 0:00:31.3]} 37. b3 {[%clk 0:01:19.3]}
37... Rb2 {[%clk 0:00:27]} 38. Kd6 {[%clk 0:01:19.4]} 38... Rxb3 {[%clk
0:00:27.2]} 39. Kc5 {[%clk 0:01:19.2]} 39... Rb4 {[%clk 0:00:27.1]} 40. Bf5
{[%clk 0:01:19.8]} 40... Rxh4 {[%clk 0:00:24.7]} 41. Kb6 {[%clk 0:01:19.8]}
41... Rxa4 {[%clk 0:00:24.6]} 42. Kxb7 {[%clk 0:01:19.7]} 42... Rf4 {[%clk
0:00:24.7]} 43. Bd7 {[%clk 0:01:18.5]} 43... c5 {[%clk 0:00:24.6]} 44. Kb6
{[%clk 0:01:19.1]} 44... a4 {[%clk 0:00:24.4]} 45. Kxc5 {[%clk 0:01:19.4]} 45...
a3 {[%clk 0:00:24.9]} 0-1

[Event "Late-Titled-Tuesday-Blitz-October-10-2023"]
[Site "Chess.com"]
[Date "2023.10.10"]
[Round "7"]
[White "WDCH"]
[Black "GM_dmitrij"]
[Result "0-1"]
[WhiteElo "2722"]
[BlackElo "3003"]
[TimeControl "180+1"]
[EndTime "15:11:20 PDT"]
[Termination "GM_dmitrij won by resignation"]

1. Nf3 {[%clk 0:03:00.9]} 1... Nf6 {[%clk 0:02:57.7]} 2. c4 {[%clk 0:03:00.9]}
2... c6 {[%clk 0:02:54.1]} 3. b3 {[%clk 0:03:00.4]} 3... d5 {[%clk 0:02:55]} 4.
g3 {[%clk 0:03:00.7]} 4... Bf5 {[%clk 0:02:52.6]} 5. Bg2 {[%clk 0:03:00.6]} 5...
e6 {[%clk 0:02:51.9]} 6. O-O {[%clk 0:03:00.6]} 6... Nbd7 {[%clk 0:02:51.3]} 7.
Bb2 {[%clk 0:03:00.7]} 7... Be7 {[%clk 0:02:49.7]} 8. d3 {[%clk 0:03:01]} 8...
h6 {[%clk 0:02:43.1]} 9. Nbd2 {[%clk 0:03:00.8]} 9... O-O {[%clk 0:02:36.5]} 10.
a3 {[%clk 0:03:00.9]} 10... a5 {[%clk 0:02:29.6]} 11. Rc1 {[%clk 0:03:00.7]}
11... Bh7 {[%clk 0:02:27.8]} 12. Rc2 {[%clk 0:03:00.5]} 12... Re8 {[%clk
0:02:23.1]} 13. Qa1 {[%clk 0:02:59.9]} 13... Qb6 {[%clk 0:02:23.6]} 14. Bd4
{[%clk 0:02:51.8]} 14... Bc5 {[%clk 0:02:20.7]} 15. Rb1 {[%clk 0:02:46.8]} 15...
Bxd4 {[%clk 0:02:19.7]} 16. Qxd4 {[%clk 0:02:46.3]} 16... Qxd4 {[%clk
0:02:07.1]} 17. Nxd4 {[%clk 0:02:47.2]} 17... e5 {[%clk 0:02:07.9]} 18. cxd5
{[%clk 0:02:05.8]} 18... exd4 {[%clk 0:02:05.6]} 19. dxc6 {[%clk 0:02:06.1]}
19... bxc6 {[%clk 0:02:06.2]} 20. Bxc6 {[%clk 0:02:05.9]} 20... Rac8 {[%clk
0:02:01.9]} 21. Nf3 {[%clk 0:02:06.2]} 21... Ne5 {[%clk 0:01:47]} 22. Nxd4
{[%clk 0:01:59.2]} 22... Red8 {[%clk 0:01:47]} 23. Ba4 {[%clk 0:01:23.7]} 23...
Rxc2 {[%clk 0:01:40.6]} 24. Nxc2 {[%clk 0:01:23]} 24... Nd5 {[%clk 0:01:41.5]}
25. f4 {[%clk 0:00:36.2]} 25... Nc3 {[%clk 0:01:40.4]} 26. Re1 {[%clk
0:00:35.1]} 26... Bxd3 {[%clk 0:01:24.5]} 27. exd3 {[%clk 0:00:30.9]} 27... Nf3+
{[%clk 0:01:24.3]} 28. Kf2 {[%clk 0:00:24.5]} 28... Nxe1 {[%clk 0:01:25.2]} 29.
Nxe1 {[%clk 0:00:18.8]} 29... Nxa4 {[%clk 0:01:19.5]} 30. bxa4 {[%clk
0:00:19.7]} 30... Rc8 {[%clk 0:01:19.9]} 31. Ke3 {[%clk 0:00:19.6]} 31... Rc3
{[%clk 0:01:20.2]} 32. Ke4 {[%clk 0:00:17.9]} 32... Rxa3 {[%clk 0:01:19.8]} 33.
d4 {[%clk 0:00:18.5]} 33... Rxa4 {[%clk 0:01:20.1]} 34. Ke5 {[%clk 0:00:18.8]}
34... Ra3 {[%clk 0:01:19.4]} 35. Ke4 {[%clk 0:00:17.2]} 35... a4 {[%clk
0:01:19.2]} 36. d5 {[%clk 0:00:17.5]} 36... Rb3 {[%clk 0:01:14.8]} 37. d6 {[%clk
0:00:16]} 37... Kf8 {[%clk 0:01:14.6]} 38. Nc2 {[%clk 0:00:16.3]} 38... a3
{[%clk 0:01:13.8]} 39. Kd5 {[%clk 0:00:15.9]} 39... a2 {[%clk 0:01:12.2]} 40. d7
{[%clk 0:00:15.6]} 40... Ke7 {[%clk 0:01:10.3]} 41. Nd4 {[%clk 0:00:15.8]} 41...
Rd3 {[%clk 0:01:10.1]} 0-1

[Event "Late-Titled-Tuesday-Blitz-October-10-2023"]
[Site "Chess.com"]
[Date "2023.10.10"]
[Round "7"]
[White "OLDTERMINATOR"]
[Black "martinez_95"]
[Result "1-0"]
[WhiteElo "1606"]
[BlackElo "2207"]
[TimeControl "180+1"]
[EndTime "15:11:20 PDT"]
[Termination "OLDTERMINATOR won by checkmate"]

1. e4 {[%clk 0:01:54.9]} 1... e5 {[%clk 0:02:58.8]} 2. Nf3 {[%clk 0:01:54]} 2...
Nc6 {[%clk 0:02:59.2]} 3. Bc4 {[%clk 0:01:54.1]} 3... Nf6 {[%clk 0:02:57.8]} 4.
Ng5 {[%clk 0:01:53.7]} 4... d5 {[%clk 0:02:57.8]} 5. exd5 {[%clk 0:01:53.7]}
5... Na5 {[%clk 0:02:57.9]} 6. Bb5+ {[%clk 0:01:53.9]} 6... c6 {[%clk 0:02:58]}
7. dxc6 {[%clk 0:01:53.3]} 7... bxc6 {[%clk 0:02:58.5]} 8. Be2 {[%clk
0:01:53.7]} 8... Nd5 {[%clk 0:02:55.6]} 9. d3 {[%clk 0:01:40.8]} 9... Be7 {[%clk
0:02:55.4]} 10. Nf3 {[%clk 0:01:38.8]} 10... O-O {[%clk 0:02:51.5]} 11. Bd2
{[%clk 0:01:31.9]} 11... Rb8 {[%clk 0:02:37.1]} 12. b3 {[%clk 0:01:26.6]} 12...
Re8 {[%clk 0:02:37.2]} 13. Nc3 {[%clk 0:01:22.8]} 13... f5 {[%clk 0:02:14.1]}
14. Nxd5 {[%clk 0:01:21]} 14... Qxd5 {[%clk 0:02:09.9]} 15. c4 {[%clk
0:01:07.7]} 15... Qd8 {[%clk 0:02:06.2]} 16. Nxe5 {[%clk 0:00:50.6]} 16... Bf6
{[%clk 0:02:04.2]} 17. f4 {[%clk 0:00:49.7]} 17... Bxe5 {[%clk 0:01:57.4]} 18.
fxe5 {[%clk 0:00:48.6]} 18... Rxe5 {[%clk 0:01:41.2]} 19. O-O {[%clk 0:00:47.9]}
19... c5 {[%clk 0:01:36.2]} 20. Bc3 {[%clk 0:00:45.7]} 20... Re7 {[%clk
0:01:29.2]} 21. Bf3 {[%clk 0:00:13.2]} 21... Be6 {[%clk 0:01:19.8]} 22. Qd2
{[%clk 0:00:12.4]} 22... Nb7 {[%clk 0:01:17.6]} 23. Rae1 {[%clk 0:00:10.6]}
23... Bf7 {[%clk 0:01:03.2]} 24. Qg5 {[%clk 0:00:06]} 24... Be6 {[%clk 0:00:44]}
25. Rxe6 {[%clk 0:00:03.7]} 25... Rxe6 {[%clk 0:00:44.4]} 26. Qxg7# {[%clk
0:00:03.6]} 1-0